[Event "Early-Titled-Tuesday-Blitz-February-13-2024"]
[Site "Chess.com"]
[Date "2024.02.13"]
[Round "1"]
[White "Fonsofan"]
[Black "ilya2700"]
[Result "1-0"]
[WhiteElo "2676"]
[BlackElo "2349"]
[TimeControl "180+1"]
[EndTime "8:07:34 PST"]
[Termination "Fonsofan won by checkmate"]

1. e4 {[%clk 0:02:53.2]} 1... c5 {[%clk 0:02:34.6]} 2. Nf3 {[%clk 0:02:52.2]}
2... e6 {[%clk 0:02:34.6]} 3. c3 {[%clk 0:02:49.5]} 3... d5 {[%clk 0:02:34.6]}
4. e5 {[%clk 0:02:49.3]} 4... Nc6 {[%clk 0:02:33.7]} 5. d4 {[%clk 0:02:49]} 5...
Nge7 {[%clk 0:02:32.9]} 6. Na3 {[%clk 0:02:44.2]} 6... g6 {[%clk 0:02:21.8]} 7.
h4 {[%clk 0:02:37.8]} 7... h5 {[%clk 0:02:21.7]} 8. dxc5 {[%clk 0:02:32.1]} 8...
a5 {[%clk 0:02:19.7]} 9. Nb5 {[%clk 0:02:30.4]} 9... Bg7 {[%clk 0:02:14.6]} 10.
Nd6+ {[%clk 0:02:27.3]} 10... Kf8 {[%clk 0:02:14.7]} 11. Ng5 {[%clk 0:02:22]}
11... Nxe5 {[%clk 0:02:14.5]} 12. f4 {[%clk 0:02:06.3]} 12... f6 {[%clk
0:02:14.7]} 13. fxe5 {[%clk 0:02:03.6]} 13... fxg5 {[%clk 0:02:14.5]} 14. Bxg5
{[%clk 0:02:04.3]} 14... Qc7 {[%clk 0:02:02.9]} 15. Bxe7+ {[%clk 0:01:51.8]}
15... Qxe7 {[%clk 0:02:02.3]} 16. Bd3 {[%clk 0:01:32.3]} 16... Bxe5 {[%clk
0:01:46.7]} 17. O-O+ {[%clk 0:01:32.5]} 17... Kg7 {[%clk 0:01:35.3]} 18. Rf7+
{[%clk 0:01:30.7]} 18... Qxf7 {[%clk 0:01:35.4]} 19. Nxf7 {[%clk 0:01:31.6]}
19... Kxf7 {[%clk 0:01:36.3]} 20. Qf3+ {[%clk 0:01:28]} 20... Ke7 {[%clk
0:01:21.7]} 21. Rf1 {[%clk 0:01:24.7]} 21... Bd7 {[%clk 0:01:21.9]} 22. Qf7+
{[%clk 0:01:18.4]} 22... Kd8 {[%clk 0:01:21.3]} 23. Bxg6 {[%clk 0:01:11.5]}
23... Kc7 {[%clk 0:01:19.1]} 24. Bd3 {[%clk 0:01:04.4]} 24... Rad8 {[%clk
0:00:41.9]} 25. a4 {[%clk 0:00:57.4]} 25... Rhg8 {[%clk 0:00:37.3]} 26. Bb5
{[%clk 0:00:55.6]} 26... Rg7 {[%clk 0:00:36.9]} 27. Qf3 {[%clk 0:00:53.6]} 27...
Rdg8 {[%clk 0:00:20.4]} 28. Bxd7 {[%clk 0:00:47.3]} 28... Kxd7 {[%clk
0:00:21.3]} 29. Re1 {[%clk 0:00:41.8]} 29... Bg3 {[%clk 0:00:19.9]} 30. Re2
{[%clk 0:00:36.6]} 30... Bxh4 {[%clk 0:00:19.8]} 31. c4 {[%clk 0:00:31.1]} 31...
Be7 {[%clk 0:00:04.7]} 32. cxd5 {[%clk 0:00:22.2]} 32... Bxc5+ {[%clk
0:00:04.9]} 33. Kh1 {[%clk 0:00:22.3]} 33... exd5 {[%clk 0:00:04.2]} 34. Qxd5+
{[%clk 0:00:19.9]} 34... Bd6 {[%clk 0:00:04.8]} 35. Re6 {[%clk 0:00:16.7]} 35...
Rxg2 {[%clk 0:00:02]} 36. Rxd6+ {[%clk 0:00:11.2]} 36... Kc7 {[%clk 0:00:02.6]}
37. Rd7+ {[%clk 0:00:11.3]} 37... Kc8 {[%clk 0:00:02.4]} 38. Qxb7# {[%clk
0:00:11.4]} 1-0

[Event "Early-Titled-Tuesday-Blitz-February-13-2024"]
[Site "Chess.com"]
[Date "2024.02.13"]
[Round "1"]
[White "noblerone"]
[Black "evgchess5"]
[Result "0-1"]
[WhiteElo "2522"]
[BlackElo "2968"]
[TimeControl "180+1"]
[EndTime "8:07:35 PST"]
[Termination "evgchess5 won by resignation"]

1. d4 {[%clk 0:03:00.9]} 1... Nf6 {[%clk 0:02:58.9]} 2. c4 {[%clk 0:02:49.9]}
2... e6 {[%clk 0:02:58.8]} 3. Nc3 {[%clk 0:02:49.3]} 3... d5 {[%clk 0:02:58.4]}
4. Nf3 {[%clk 0:02:46.5]} 4... Bb4 {[%clk 0:02:56.7]} 5. Qb3 {[%clk 0:02:43]}
5... c5 {[%clk 0:02:55.1]} 6. dxc5 {[%clk 0:02:33.8]} 6... Nc6 {[%clk 0:02:52]}
7. Bd2 {[%clk 0:02:19]} 7... d4 {[%clk 0:02:36.8]} 8. Nb1 {[%clk 0:02:12.7]}
8... Bxc5 {[%clk 0:02:33.1]} 9. g3 {[%clk 0:01:48.4]} 9... e5 {[%clk 0:02:31.2]}
10. Bg5 {[%clk 0:01:28.6]} 10... h6 {[%clk 0:02:04.9]} 11. Bxf6 {[%clk
0:01:27.1]} 11... Qxf6 {[%clk 0:02:05.4]} 12. Nbd2 {[%clk 0:01:27.4]} 12... Qe7
{[%clk 0:02:05.6]} 13. O-O-O {[%clk 0:00:30.5]} 13... e4 {[%clk 0:01:59.2]} 14.
Ne1 {[%clk 0:00:29.2]} 14... O-O {[%clk 0:01:54.4]} 15. Bg2 {[%clk 0:00:28.7]}
15... f5 {[%clk 0:01:52.7]} 16. Kb1 {[%clk 0:00:17.5]} 16... Be6 {[%clk
0:01:49]} 17. Qa4 {[%clk 0:00:15.9]} 17... a6 {[%clk 0:01:40.6]} 18. Nb3 {[%clk
0:00:14.3]} 18... Ba7 {[%clk 0:01:39]} 19. c5 {[%clk 0:00:12.9]} 19... Bxc5
{[%clk 0:01:29.5]} 20. Nxc5 {[%clk 0:00:13.8]} 20... Qxc5 {[%clk 0:01:28.7]} 21.
Rc1 {[%clk 0:00:13.6]} 21... Qd6 {[%clk 0:01:21.4]} 22. Nc2 {[%clk 0:00:13.6]}
22... Rfd8 {[%clk 0:01:18.4]} 23. Qa3 {[%clk 0:00:12.4]} 23... Qe5 {[%clk
0:01:06.8]} 24. Rhd1 {[%clk 0:00:10.6]} 24... Rd7 {[%clk 0:01:03.1]} 25. Nb4
{[%clk 0:00:09]} 25... Nxb4 {[%clk 0:00:59.5]} 26. Qxb4 {[%clk 0:00:09.9]} 26...
Rad8 {[%clk 0:00:58.8]} 27. Qa3 {[%clk 0:00:07.1]} 27... Kh7 {[%clk 0:00:52.7]}
28. h4 {[%clk 0:00:06.7]} 28... Qb5 {[%clk 0:00:44.9]} 29. Bf1 {[%clk
0:00:05.2]} 29... Qb6 {[%clk 0:00:42.2]} 30. Ka1 {[%clk 0:00:04.4]} 30... d3
{[%clk 0:00:35.8]} 31. e3 {[%clk 0:00:04.3]} 31... Rc7 {[%clk 0:00:32]} 32. Rxc7
{[%clk 0:00:03.9]} 32... Qxc7 {[%clk 0:00:31.9]} 33. Qc3 {[%clk 0:00:04.8]}
33... Qxc3 {[%clk 0:00:29.7]} 34. bxc3 {[%clk 0:00:05.7]} 34... Kg6 {[%clk
0:00:29.1]} 35. Kb2 {[%clk 0:00:05.8]} 35... Kf6 {[%clk 0:00:28.2]} 36. Rd2
{[%clk 0:00:05.1]} 36... Rd6 {[%clk 0:00:27.9]} 37. Rd1 {[%clk 0:00:05.4]} 37...
Rb6+ {[%clk 0:00:27.9]} 38. Ka1 {[%clk 0:00:04.9]} 38... Rc6 {[%clk 0:00:27]}
39. Rd2 {[%clk 0:00:05.6]} 39... Rxc3 {[%clk 0:00:26.6]} 40. Kb2 {[%clk
0:00:06.5]} 40... Rc5 {[%clk 0:00:26.3]} 41. a4 {[%clk 0:00:05.8]} 41... a5
{[%clk 0:00:25.7]} 42. Ka3 {[%clk 0:00:04.4]} 42... Rc3+ {[%clk 0:00:25.5]} 43.
Kb2 {[%clk 0:00:04.7]} 43... Rb3+ {[%clk 0:00:25.6]} 44. Kc1 {[%clk 0:00:05]}
44... Ra3 {[%clk 0:00:25]} 45. Rb2 {[%clk 0:00:04.9]} 45... Ra1+ {[%clk
0:00:24.6]} 46. Kd2 {[%clk 0:00:05.3]} 46... Rxf1 {[%clk 0:00:23.9]} 47. Kc3
{[%clk 0:00:04.9]} 47... Rc1+ {[%clk 0:00:23.5]} 0-1

[Event "Early-Titled-Tuesday-Blitz-February-13-2024"]
[Site "Chess.com"]
[Date "2024.02.13"]
[Round "1"]
[White "nj123456"]
[Black "Grossboss19"]
[Result "0-1"]
[WhiteElo "2235"]
[BlackElo "2608"]
[TimeControl "180+1"]
[EndTime "8:07:35 PST"]
[Termination "Grossboss19 won by resignation"]

1. e4 {[%clk 0:03:00.9]} 1... c5 {[%clk 0:02:59.4]} 2. c3 {[%clk 0:03:00.7]}
2... Nc6 {[%clk 0:02:56.6]} 3. d4 {[%clk 0:03:00.6]} 3... d5 {[%clk 0:02:56.8]}
4. exd5 {[%clk 0:03:00.7]} 4... Qxd5 {[%clk 0:02:56.4]} 5. Nf3 {[%clk 0:03:01]}
5... Bg4 {[%clk 0:02:52.7]} 6. Be2 {[%clk 0:03:01]} 6... O-O-O {[%clk
0:02:52.3]} 7. O-O {[%clk 0:03:00.7]} 7... Nf6 {[%clk 0:02:43.3]} 8. Be3 {[%clk
0:02:49.1]} 8... Qf5 {[%clk 0:02:34.4]} 9. Qa4 {[%clk 0:02:38.9]} 9... Nd5
{[%clk 0:02:26.7]} 10. Nbd2 {[%clk 0:02:13]} 10... e5 {[%clk 0:02:08]} 11. dxe5
{[%clk 0:01:19.4]} 11... Qg6 {[%clk 0:01:42.3]} 12. Nh4 {[%clk 0:01:12.8]} 12...
Bxe2 {[%clk 0:01:41]} 13. Nxg6 {[%clk 0:01:12.6]} 13... hxg6 {[%clk 0:01:39.9]}
14. Rfe1 {[%clk 0:01:10.5]} 14... Bd3 {[%clk 0:01:28.4]} 15. Nf3 {[%clk
0:01:04.8]} 15... Be7 {[%clk 0:01:25.6]} 16. Rad1 {[%clk 0:01:03.1]} 16... Bf5
{[%clk 0:01:24.6]} 17. Qb3 {[%clk 0:01:00]} 17... Be6 {[%clk 0:01:23.2]} 18. Qa4
{[%clk 0:00:59.6]} 18... Nb6 {[%clk 0:01:22.3]} 19. Qf4 {[%clk 0:00:56]} 19...
Bxa2 {[%clk 0:01:20.4]} 20. Ng5 {[%clk 0:00:53.1]} 20... Bxg5 {[%clk 0:01:17.5]}
21. Qxg5 {[%clk 0:00:54]} 21... Na4 {[%clk 0:01:08.5]} 22. e6 {[%clk 0:00:51.6]}
22... Bxe6 {[%clk 0:01:06.3]} 23. Bxc5 {[%clk 0:00:48.8]} 23... Rxd1 {[%clk
0:00:53.7]} 24. Rxd1 {[%clk 0:00:44.9]} 24... Rh5 {[%clk 0:00:54.2]} 25. Qf4
{[%clk 0:00:32.1]} 25... Nxc5 {[%clk 0:00:50.4]} 26. h3 {[%clk 0:00:32.6]} 26...
Rh8 {[%clk 0:00:44.6]} 27. Qe3 {[%clk 0:00:27]} 27... Nd7 {[%clk 0:00:42.1]} 28.
b4 {[%clk 0:00:26.4]} 28... a6 {[%clk 0:00:41.9]} 29. Rb1 {[%clk 0:00:24.9]}
29... Bc4 {[%clk 0:00:39.4]} 30. Qf4 {[%clk 0:00:24.6]} 30... Nde5 {[%clk
0:00:38.2]} 31. Re1 {[%clk 0:00:23.8]} 31... f6 {[%clk 0:00:38.2]} 32. Qe3
{[%clk 0:00:21.7]} 32... g5 {[%clk 0:00:36.8]} 33. Qc5 {[%clk 0:00:21.1]} 33...
Kb8 {[%clk 0:00:30.7]} 34. Qd6+ {[%clk 0:00:20.4]} 34... Ka8 {[%clk 0:00:30.8]}
35. Re4 {[%clk 0:00:20.5]} 35... Rd8 {[%clk 0:00:29.9]} 36. Qc5 {[%clk
0:00:19.9]} 36... Bd3 {[%clk 0:00:28.9]} 37. Re3 {[%clk 0:00:19.5]} 37... Bb5
{[%clk 0:00:29.1]} 38. Rg3 {[%clk 0:00:17.9]} 38... Nd3 {[%clk 0:00:27]} 39. Qe3
{[%clk 0:00:17.6]} 39... Nce5 {[%clk 0:00:27]} 40. Kh2 {[%clk 0:00:16.2]} 40...
Nf4 {[%clk 0:00:27]} 41. Qe4 {[%clk 0:00:16.1]} 41... Bc6 {[%clk 0:00:26.4]} 42.
Qe3 {[%clk 0:00:14.7]} 42... Rd3 {[%clk 0:00:25.3]} 43. Qe1 {[%clk 0:00:14.5]}
43... Rxg3 {[%clk 0:00:23.3]} 44. fxg3 {[%clk 0:00:15.4]} 44... Nxg2 {[%clk
0:00:19.8]} 45. Qd2 {[%clk 0:00:16]} 45... Nf3+ {[%clk 0:00:19.8]} 46. Kxg2
{[%clk 0:00:15.7]} 46... Nxd2+ {[%clk 0:00:20.3]} 47. Kf2 {[%clk 0:00:16.6]}
47... Ne4+ {[%clk 0:00:20.7]} 48. Ke3 {[%clk 0:00:17.1]} 48... Nxc3 {[%clk
0:00:21.6]} 49. Kd4 {[%clk 0:00:18]} 49... Nd5 {[%clk 0:00:21.7]} 50. Kc5 {[%clk
0:00:18.9]} 50... Ka7 {[%clk 0:00:21.8]} 51. b5 {[%clk 0:00:19.8]} 51... axb5
{[%clk 0:00:22.6]} 52. g4 {[%clk 0:00:19.6]} 52... Nf4 {[%clk 0:00:22.7]} 53. h4
{[%clk 0:00:20.5]} 53... gxh4 {[%clk 0:00:23.5]} 54. g5 {[%clk 0:00:20.7]} 54...
fxg5 {[%clk 0:00:24.4]} 0-1

[Event "Early-Titled-Tuesday-Blitz-February-13-2024"]
[Site "Chess.com"]
[Date "2024.02.13"]
[Round "1"]
[White "Thormento16"]
[Black "Akewjon"]
[Result "1-0"]
[WhiteElo "2462"]
[BlackElo "2789"]
[TimeControl "180+1"]
[EndTime "8:07:36 PST"]
[Termination "Thormento16 won by resignation"]

1. e4 {[%clk 0:02:58.3]} 1... c6 {[%clk 0:02:59]} 2. d4 {[%clk 0:02:52.5]} 2...
d5 {[%clk 0:02:58.8]} 3. exd5 {[%clk 0:02:53.4]} 3... cxd5 {[%clk 0:02:58.5]} 4.
Bd3 {[%clk 0:02:52.9]} 4... Nc6 {[%clk 0:02:57.4]} 5. c3 {[%clk 0:02:48.4]} 5...
Nf6 {[%clk 0:02:55.3]} 6. Bf4 {[%clk 0:02:46.4]} 6... Bg4 {[%clk 0:02:48.9]} 7.
Qb3 {[%clk 0:02:44.6]} 7... Qd7 {[%clk 0:02:49.1]} 8. Nd2 {[%clk 0:02:42.8]}
8... e6 {[%clk 0:02:31.8]} 9. Ngf3 {[%clk 0:02:41]} 9... Bxf3 {[%clk 0:02:17.1]}
10. Nxf3 {[%clk 0:02:41]} 10... a6 {[%clk 0:02:02.6]} 11. O-O {[%clk 0:02:35.4]}
11... Be7 {[%clk 0:01:52.3]} 12. Ne5 {[%clk 0:02:33.2]} 12... Nxe5 {[%clk
0:01:51.4]} 13. dxe5 {[%clk 0:02:26]} 13... Nh5 {[%clk 0:01:28.5]} 14. Be3
{[%clk 0:02:24.1]} 14... g6 {[%clk 0:01:24]} 15. Bh6 {[%clk 0:02:18.8]} 15...
Bf8 {[%clk 0:01:23.7]} 16. Bg5 {[%clk 0:02:08]} 16... h6 {[%clk 0:01:18.7]} 17.
Be3 {[%clk 0:01:48.6]} 17... Be7 {[%clk 0:01:18.6]} 18. Rad1 {[%clk 0:01:40.8]}
18... Rd8 {[%clk 0:01:03.8]} 19. c4 {[%clk 0:01:40.9]} 19... d4 {[%clk
0:00:57.7]} 20. Be4 {[%clk 0:01:21.1]} 20... Bc5 {[%clk 0:00:53.8]} 21. Bc1
{[%clk 0:01:11]} 21... b6 {[%clk 0:00:48.2]} 22. Qf3 {[%clk 0:01:03]} 22... Qc7
{[%clk 0:00:42.4]} 23. Rfe1 {[%clk 0:00:59.9]} 23... Ng7 {[%clk 0:00:39.1]} 24.
a3 {[%clk 0:00:56.9]} 24... a5 {[%clk 0:00:38.8]} 25. Bd2 {[%clk 0:00:53.3]}
25... Nf5 {[%clk 0:00:33.6]} 26. Bxf5 {[%clk 0:00:51.7]} 26... gxf5 {[%clk
0:00:31.7]} 27. b4 {[%clk 0:00:49.3]} 27... axb4 {[%clk 0:00:31.9]} 28. axb4
{[%clk 0:00:50.2]} 28... Be7 {[%clk 0:00:32.8]} 29. Rc1 {[%clk 0:00:35.6]} 29...
Bg5 {[%clk 0:00:30.5]} 30. Qd3 {[%clk 0:00:29.8]} 30... Rg8 {[%clk 0:00:28.5]}
31. c5 {[%clk 0:00:28.3]} 31... Kf8 {[%clk 0:00:24.3]} 32. cxb6 {[%clk
0:00:20.5]} 32... Qxb6 {[%clk 0:00:25.2]} 33. b5 {[%clk 0:00:21.4]} 33... Bxd2
{[%clk 0:00:24]} 34. Qxd2 {[%clk 0:00:21.9]} 34... Qxb5 {[%clk 0:00:24.6]} 35.
Qxh6+ {[%clk 0:00:22.1]} 35... Ke8 {[%clk 0:00:22.9]} 36. Rc7 {[%clk 0:00:18.5]}
36... d3 {[%clk 0:00:18.9]} 37. Qf6 {[%clk 0:00:16.7]} 37... Qd7 {[%clk
0:00:08.5]} 38. Rxd7 {[%clk 0:00:16.6]} 38... Rxd7 {[%clk 0:00:09.4]} 39. Rc1
{[%clk 0:00:16]} 39... Rd8 {[%clk 0:00:05.4]} 40. Rc7 {[%clk 0:00:11]} 1-0

[Event "Early-Titled-Tuesday-Blitz-February-13-2024"]
[Site "Chess.com"]
[Date "2024.02.13"]
[Round "1"]
[White "Canal_Showdrez"]
[Black "ama18"]
[Result "0-1"]
[WhiteElo "2069"]
[BlackElo "2565"]
[TimeControl "180+1"]
[EndTime "8:07:36 PST"]
[Termination "ama18 won by checkmate"]

1. d4 {[%clk 0:02:58]} 1... Nf6 {[%clk 0:02:58.8]} 2. Nf3 {[%clk 0:02:58.1]}
2... e6 {[%clk 0:02:58.6]} 3. e3 {[%clk 0:02:58.1]} 3... b6 {[%clk 0:02:58.6]}
4. Bd3 {[%clk 0:02:57.4]} 4... Bb7 {[%clk 0:02:59.1]} 5. Nbd2 {[%clk 0:02:56.4]}
5... c5 {[%clk 0:02:59.2]} 6. b3 {[%clk 0:02:56.5]} 6... cxd4 {[%clk 0:02:57.9]}
7. exd4 {[%clk 0:02:56.1]} 7... Be7 {[%clk 0:02:58.6]} 8. O-O {[%clk 0:02:55.5]}
8... O-O {[%clk 0:02:58.1]} 9. Bb2 {[%clk 0:02:54.7]} 9... d6 {[%clk 0:02:47.4]}
10. c4 {[%clk 0:02:54]} 10... Nbd7 {[%clk 0:02:41.8]} 11. Re1 {[%clk 0:02:51.4]}
11... Re8 {[%clk 0:02:38.3]} 12. Rc1 {[%clk 0:02:50.3]} 12... Rc8 {[%clk
0:02:26.7]} 13. Bb1 {[%clk 0:02:49.5]} 13... Bf8 {[%clk 0:02:22.6]} 14. Qc2
{[%clk 0:02:42.7]} 14... Qc7 {[%clk 0:02:18.8]} 15. Ng5 {[%clk 0:02:38.4]} 15...
g6 {[%clk 0:02:18.1]} 16. f4 {[%clk 0:02:32.1]} 16... Bh6 {[%clk 0:02:13.8]} 17.
Ndf3 {[%clk 0:02:27.5]} 17... Nh5 {[%clk 0:02:09.8]} 18. g3 {[%clk 0:02:07.9]}
18... Nf8 {[%clk 0:01:49.9]} 19. Qc3 {[%clk 0:02:06.8]} 19... Bg7 {[%clk
0:01:32.6]} 20. Ba3 {[%clk 0:01:57.2]} 20... Nf6 {[%clk 0:01:14.3]} 21. Qb4
{[%clk 0:01:53.4]} 21... Red8 {[%clk 0:00:48.4]} 22. c5 {[%clk 0:01:45.7]} 22...
dxc5 {[%clk 0:00:37.2]} 23. dxc5 {[%clk 0:01:45.6]} 23... Nd5 {[%clk 0:00:37.1]}
24. Qd2 {[%clk 0:01:32.9]} 24... bxc5 {[%clk 0:00:34.5]} 25. Rxc5 {[%clk
0:01:31.8]} 25... Qb6 {[%clk 0:00:33.7]} 26. b4 {[%clk 0:01:29.4]} 26... Nd7
{[%clk 0:00:30.7]} 27. Kg2 {[%clk 0:01:08.6]} 27... Nxc5 {[%clk 0:00:28.9]} 28.
bxc5 {[%clk 0:01:09.5]} 28... Qc7 {[%clk 0:00:24.5]} 29. Be4 {[%clk 0:01:03.4]}
29... Nc3 {[%clk 0:00:23]} 30. Qc2 {[%clk 0:00:59.6]} 30... Nxe4 {[%clk
0:00:22.3]} 31. Nxe4 {[%clk 0:00:58.3]} 31... Qc6 {[%clk 0:00:22.7]} 32. Ne5
{[%clk 0:00:46.1]} 32... Qd5 {[%clk 0:00:16.7]} 33. Kh3 {[%clk 0:00:17.4]} 33...
Bxe5 {[%clk 0:00:12.9]} 34. fxe5 {[%clk 0:00:17.4]} 34... Qxe5 {[%clk
0:00:13.4]} 35. Qf2 {[%clk 0:00:14.8]} 35... Bxe4 {[%clk 0:00:10.2]} 36. Qf4
{[%clk 0:00:15]} 36... Qxf4 {[%clk 0:00:10.3]} 37. gxf4 {[%clk 0:00:15.9]} 37...
Bf5+ {[%clk 0:00:11]} 38. Kg3 {[%clk 0:00:15.4]} 38... Rd3+ {[%clk 0:00:11.3]}
39. Kf2 {[%clk 0:00:16.3]} 39... Rxa3 {[%clk 0:00:11.6]} 40. Re3 {[%clk
0:00:16.5]} 40... Rxa2+ {[%clk 0:00:11.8]} 41. Re2 {[%clk 0:00:16.6]} 41...
Rxe2+ {[%clk 0:00:11.5]} 42. Kxe2 {[%clk 0:00:17.5]} 42... Rxc5 {[%clk
0:00:11.9]} 43. Ke3 {[%clk 0:00:18.4]} 43... Rd5 {[%clk 0:00:12.7]} 44. Ke2
{[%clk 0:00:17.2]} 44... a5 {[%clk 0:00:13.6]} 45. Ke3 {[%clk 0:00:17.7]} 45...
a4 {[%clk 0:00:13.9]} 46. h4 {[%clk 0:00:18.6]} 46... a3 {[%clk 0:00:14.3]} 47.
h5 {[%clk 0:00:19.5]} 47... a2 {[%clk 0:00:14.9]} 48. h6 {[%clk 0:00:20.4]}
48... a1=Q {[%clk 0:00:14.7]} 49. Ke2 {[%clk 0:00:21.3]} 49... Qb2+ {[%clk
0:00:14.8]} 50. Kf3 {[%clk 0:00:22.2]} 50... Rd3# {[%clk 0:00:15.1]} 0-1

[Event "Early-Titled-Tuesday-Blitz-February-13-2024"]
[Site "Chess.com"]
[Date "2024.02.13"]
[Round "1"]
[White "Rap_woyska"]
[Black "starworld123"]
[Result "0-1"]
[WhiteElo "2468"]
[BlackElo "2839"]
[TimeControl "180+1"]
[EndTime "8:07:37 PST"]
[Termination "starworld123 won by resignation"]

1. c4 {[%clk 0:02:59.7]} 1... e6 {[%clk 0:02:57.4]} 2. Nf3 {[%clk 0:02:59.6]}
2... d5 {[%clk 0:02:57.8]} 3. g3 {[%clk 0:03:00.1]} 3... Nf6 {[%clk 0:02:56.3]}
4. Bg2 {[%clk 0:03:00.5]} 4... Be7 {[%clk 0:02:53.1]} 5. O-O {[%clk 0:03:00.6]}
5... O-O {[%clk 0:02:53.8]} 6. d4 {[%clk 0:03:00.8]} 6... dxc4 {[%clk
0:02:43.4]} 7. Qc2 {[%clk 0:03:00.9]} 7... a6 {[%clk 0:02:31.4]} 8. a4 {[%clk
0:03:00.5]} 8... Nc6 {[%clk 0:02:28.5]} 9. Qxc4 {[%clk 0:02:59.5]} 9... Na5
{[%clk 0:02:29.1]} 10. Qc2 {[%clk 0:02:48.1]} 10... b6 {[%clk 0:02:28.9]} 11.
Nc3 {[%clk 0:02:40]} 11... Bb7 {[%clk 0:02:21.7]} 12. Rd1 {[%clk 0:02:35.5]}
12... Nd5 {[%clk 0:02:10.3]} 13. e4 {[%clk 0:02:24.7]} 13... Nb4 {[%clk
0:02:08.9]} 14. Qe2 {[%clk 0:02:24.6]} 14... Nb3 {[%clk 0:02:09]} 15. Rb1 {[%clk
0:02:18.5]} 15... a5 {[%clk 0:01:59.1]} 16. Qc4 {[%clk 0:01:40]} 16... Nxc1
{[%clk 0:01:48.1]} 17. Rbxc1 {[%clk 0:01:40.9]} 17... Ba6 {[%clk 0:01:26.1]} 18.
Qb3 {[%clk 0:01:39.8]} 18... Rc8 {[%clk 0:01:21.3]} 19. Ne5 {[%clk 0:01:32.8]}
19... Qe8 {[%clk 0:01:16.7]} 20. h4 {[%clk 0:01:05.7]} 20... c5 {[%clk
0:00:57.9]} 21. dxc5 {[%clk 0:00:48.7]} 21... Bxc5 {[%clk 0:00:58.8]} 22. Rd2
{[%clk 0:00:36.2]} 22... f6 {[%clk 0:00:42.4]} 23. Nf3 {[%clk 0:00:35.8]} 23...
Bc4 {[%clk 0:00:39.2]} 24. Qd1 {[%clk 0:00:35.8]} 24... Rd8 {[%clk 0:00:36.4]}
25. Rxd8 {[%clk 0:00:24.9]} 25... Qxd8 {[%clk 0:00:37.3]} 26. Nb5 {[%clk
0:00:21.8]} 26... Qxd1+ {[%clk 0:00:26.9]} 27. Rxd1 {[%clk 0:00:22.7]} 27... Bb3
{[%clk 0:00:19.1]} 28. Rd7 {[%clk 0:00:23]} 28... Bxa4 {[%clk 0:00:19.4]} 29.
Bf1 {[%clk 0:00:22.2]} 29... Bc2 {[%clk 0:00:16.8]} 30. e5 {[%clk 0:00:21.2]}
30... Be4 {[%clk 0:00:17.3]} 31. Nd2 {[%clk 0:00:20]} 31... Bc6 {[%clk
0:00:17.9]} 32. Rc7 {[%clk 0:00:20.3]} 32... fxe5 {[%clk 0:00:16.5]} 33. Rxc6
{[%clk 0:00:10.9]} 33... Nxc6 {[%clk 0:00:15]} 34. Ne4 {[%clk 0:00:11.2]} 34...
Nd4 {[%clk 0:00:15.3]} 35. Nc7 {[%clk 0:00:09]} 35... Rc8 {[%clk 0:00:14.2]} 36.
Nxe6 {[%clk 0:00:04.8]} 36... Nxe6 {[%clk 0:00:13.8]} 37. Bc4 {[%clk 0:00:03.9]}
37... Bxf2+ {[%clk 0:00:13.5]} 0-1

[Event "Early-Titled-Tuesday-Blitz-February-13-2024"]
[Site "Chess.com"]
[Date "2024.02.13"]
[Round "1"]
[White "ChessFanNM"]
[Black "Timerkhanov"]
[Result "0-1"]
[WhiteElo "2326"]
[BlackElo "2659"]
[TimeControl "180+1"]
[EndTime "8:07:37 PST"]
[Termination "Timerkhanov won by resignation"]

1. Nf3 {[%clk 0:02:59.5]} 1... d5 {[%clk 0:02:59.8]} 2. e3 {[%clk 0:02:55.9]}
2... Nf6 {[%clk 0:02:57.7]} 3. c4 {[%clk 0:02:54.9]} 3... c6 {[%clk 0:02:57.9]}
4. b3 {[%clk 0:02:36.9]} 4... g6 {[%clk 0:02:56.8]} 5. Bb2 {[%clk 0:02:35.9]}
5... Bg7 {[%clk 0:02:56.5]} 6. Be2 {[%clk 0:02:35.3]} 6... O-O {[%clk
0:02:55.9]} 7. O-O {[%clk 0:02:34.1]} 7... a5 {[%clk 0:02:55.8]} 8. Nc3 {[%clk
0:02:33]} 8... Ne4 {[%clk 0:02:55.2]} 9. Rc1 {[%clk 0:02:28.4]} 9... Bg4 {[%clk
0:02:36.4]} 10. Qc2 {[%clk 0:02:16.6]} 10... Nxc3 {[%clk 0:02:26.3]} 11. Bxc3
{[%clk 0:02:15.8]} 11... Bxc3 {[%clk 0:02:23]} 12. Qxc3 {[%clk 0:02:11.5]} 12...
Bxf3 {[%clk 0:02:20.6]} 13. Bxf3 {[%clk 0:02:11.2]} 13... e6 {[%clk 0:02:20.6]}
14. g3 {[%clk 0:02:04.7]} 14... Nd7 {[%clk 0:02:19.7]} 15. d4 {[%clk 0:02:02.1]}
15... Qf6 {[%clk 0:02:16.9]} 16. Bg2 {[%clk 0:01:46.1]} 16... Qe7 {[%clk
0:02:05.3]} 17. c5 {[%clk 0:01:42.5]} 17... f5 {[%clk 0:02:00.9]} 18. h4 {[%clk
0:01:34.7]} 18... e5 {[%clk 0:01:59.9]} 19. a3 {[%clk 0:01:03.4]} 19... f4
{[%clk 0:01:44.1]} 20. dxe5 {[%clk 0:00:58.4]} 20... fxg3 {[%clk 0:01:38.4]} 21.
fxg3 {[%clk 0:00:55.4]} 21... Nxe5 {[%clk 0:01:38.1]} 22. Qd4 {[%clk 0:00:49.6]}
22... Rxf1+ {[%clk 0:01:33.5]} 23. Rxf1 {[%clk 0:00:48.2]} 23... Rf8 {[%clk
0:01:32.2]} 24. Rf4 {[%clk 0:00:41]} 24... Nd7 {[%clk 0:01:28.9]} 25. Rxf8+
{[%clk 0:00:39.1]} 25... Qxf8 {[%clk 0:01:18]} 26. b4 {[%clk 0:00:40]} 26...
axb4 {[%clk 0:01:01.6]} 27. axb4 {[%clk 0:00:40.9]} 27... Qf6 {[%clk 0:00:47.1]}
28. Qxf6 {[%clk 0:00:37.9]} 28... Nxf6 {[%clk 0:00:48]} 29. Bf3 {[%clk
0:00:38.2]} 29... Kf7 {[%clk 0:00:47.7]} 30. Kf2 {[%clk 0:00:38.3]} 30... Ke6
{[%clk 0:00:45.9]} 31. Ke2 {[%clk 0:00:33.7]} 31... h5 {[%clk 0:00:41.6]} 32.
Kd3 {[%clk 0:00:33.4]} 32... Ke5 {[%clk 0:00:40.1]} 33. Bg2 {[%clk 0:00:28]}
33... Ng4 {[%clk 0:00:38]} 34. Bf3 {[%clk 0:00:27.4]} 34... Nf2+ {[%clk
0:00:36.9]} 35. Ke2 {[%clk 0:00:18.7]} 35... Ne4 {[%clk 0:00:37]} 36. g4 {[%clk
0:00:16.3]} 36... hxg4 {[%clk 0:00:20.2]} 37. Bxg4 {[%clk 0:00:17.2]} 37... Ng3+
{[%clk 0:00:20.5]} 38. Kf3 {[%clk 0:00:17.1]} 38... Nf5 {[%clk 0:00:21.1]} 39.
Bxf5 {[%clk 0:00:16.3]} 39... Kxf5 {[%clk 0:00:21.3]} 40. Kg3 {[%clk 0:00:16.2]}
40... Ke4 {[%clk 0:00:21.2]} 41. Kg4 {[%clk 0:00:16.6]} 41... Kxe3 {[%clk
0:00:21.3]} 42. Kg5 {[%clk 0:00:17.1]} 42... d4 {[%clk 0:00:21.8]} 43. Kxg6
{[%clk 0:00:17.4]} 43... d3 {[%clk 0:00:22.7]} 44. h5 {[%clk 0:00:17.8]} 44...
d2 {[%clk 0:00:23.6]} 45. h6 {[%clk 0:00:18.5]} 45... d1=Q {[%clk 0:00:24.5]}
46. h7 {[%clk 0:00:19.2]} 46... Qa1 {[%clk 0:00:25.1]} 0-1